bitfinex-derivatives/quotes_BTCF0:USTF0_20250724
["timestamp","ask_amount","ask_price","bid_price","bid_amount"]
[1753387300350,1.6611311,118890.0,118880.0,1.00171181]
[1753387300653,1.6611311,118890.0,118880.0,1.35781483]
[1753387302746,1.6849411,118890.0,118880.0,1.35781483]
[1753387303148,1.7180211,118890.0,118880.0,1.35781483]
[1753387303837,0.2180211,118890.0,118880.0,1.35781483]
[1753387304451,0.2273211,118890.0,118880.0,1.35781483]
[1753387304640,0.2572311,118890.0,118880.0,1.35781483]
[1753387309947,0.2572311,118890.0,118880.0,1.35569483]
[1753387310346,0.2572311,118890.0,118880.0,0.99959181]
[1753387310546,0.2794911,118890.0,118880.0,1.35569483]
[1753387310748,0.2794911,118890.0,118880.0,1.18754953]
[1753387311053,0.2794911,118890.0,118880.0,1.35569483]
[1753387311754,0.2794911,118890.0,118880.0,0.99959181]
[1753387311949,0.2794911,118890.0,118880.0,1.35569483]
[1753387319756,0.2398811,118890.0,118880.0,1.31593483]
[1753387319960,0.2794911,118890.0,118880.0,1.33919483]
[1753387320260,0.2794911,118890.0,118880.0,0.75218483]
[1753387320654,0.2794911,118890.0,118880.0,1.35478483]
[1753387320960,0.2794911,118890.0,118880.0,0.75218483]
[1753387321160,0.2794911,118890.0,118880.0,1.35478483]
[1753387321956,0.63559412,118890.0,118880.0,0.10942651]
[1753387322162,0.63559412,118890.0,118880.0,0.82797651]
[1753387322363,0.63559412,118890.0,118880.0,0.99612181]
[1753387322663,0.63559412,118890.0,118880.0,0.82797651]
[1753387322664,0.2794911,118890.0,118880.0,0.82797651]
[1753387323052,0.2794911,118890.0,118880.0,0.22537651]
[1753387323258,0.2794911,118890.0,118880.0,0.82797651]
[1753387323662,0.2007411,118890.0,118880.0,0.99612181]
[1753387323866,0.1611311,118890.0,118880.0,1.35222483]
[1753387324058,0.1611311,118890.0,118880.0,1.35218483]
[1753387324258,0.1601311,118890.0,118880.0,1.35218483]
[1753387324967,0.002,118890.0,118880.0,1.70828785]
[1753387325560,0.3705307,118910.0,118900.0,0.214047]
[1753387325866,0.4125331,118920.0,118910.0,0.2140329]
[1753387326066,0.4125331,118920.0,118910.0,0.57013592]
[1753387326368,0.4125331,118920.0,118910.0,0.64015592]
[1753387327565,0.4135331,118920.0,118910.0,0.64015592]
[1753387327956,0.4135331,118920.0,118910.0,0.2840529]
[1753387328565,0.4135331,118920.0,118910.0,0.64015592]
[1753387329168,0.4135331,118920.0,118910.0,1.24267592]
[1753387330062,0.4175331,118920.0,118910.0,1.24267592]
[1753387330264,0.4175331,118920.0,118910.0,0.8864929]
[1753387330769,0.4175331,118920.0,118910.0,0.2840529]
[1753387330965,0.4120824,118910.0,118900.0,0.262507]
[1753387331266,0.76818542,118910.0,118900.0,0.889317]
[1753387331862,0.76818542,118910.0,118900.0,0.1188]
[1753387332060,0.76818542,118910.0,118900.0,0.7212]
[1753387333074,0.77118542,118910.0,118900.0,0.7212]
[1753387334067,0.77118542,118910.0,118900.0,0.72112]
[1753387334766,0.4160824,118910.0,118900.0,0.72212]
[1753387335371,0.77218542,118910.0,118900.0,0.72212]
[1753387339370,0.77218542,118910.0,118900.0,0.890237]
[1753387340482,0.4160824,118910.0,118900.0,0.890237]
[1753387340776,0.77218542,118910.0,118900.0,0.890237]
[1753387341078,0.4160824,118910.0,118900.0,0.890237]
[1753387341473,0.77218542,118910.0,118900.0,0.890237]
[1753387342379,0.77218542,118910.0,118900.0,0.72212]
[1753387343073,0.4160824,118910.0,118900.0,1.24634002]
[1753387343472,0.4160824,118910.0,118900.0,0.890237]
[1753387344083,0.4160824,118910.0,118900.0,0.72212]
[1753387345679,0.4160824,118910.0,118900.0,0.1198]
[1753387345875,0.4160824,118910.0,118900.0,0.72184]
[1753387349586,0.77218542,118910.0,118900.0,0.72184]
[1753387350084,0.77218542,118910.0,118900.0,0.72172]
[1753387350882,0.77218542,118910.0,118900.0,0.72072]
[1753387351578,0.4160824,118910.0,118900.0,0.72072]
[1753387351786,0.77218542,118910.0,118900.0,0.72072]
[1753387352281,0.77318542,118910.0,118900.0,0.72072]
[1753387355789,0.77318542,118910.0,118900.0,0.1188]
[1753387355989,0.77318542,118910.0,118900.0,0.72064]
[1753387356685,0.4170824,118910.0,118900.0,0.72064]
[1753387356884,0.4170824,118910.0,118900.0,1.07674302]
[1753387357090,0.4170824,118910.0,118900.0,1.24486012]
[1753387357386,0.4170824,118910.0,118900.0,1.07674302]
[1753387357685,0.4170824,118910.0,118900.0,0.72064]
[1753387361590,0.77318542,118910.0,118900.0,0.72064]
[1753387363994,0.4170824,118910.0,118900.0,0.72064]
[1753387367189,0.77318542,118910.0,118900.0,0.8887571]
[1753387367494,0.4170824,118910.0,118900.0,0.8887571]
[1753387367897,0.4170824,118910.0,118900.0,0.2869171]
[1753387368091,0.4170824,118910.0,118900.0,0.8884371]
[1753387368291,0.4170824,118910.0,118900.0,0.2869171]
[1753387368491,0.4170824,118910.0,118900.0,1.24446012]
[1753387369789,0.4170824,118910.0,118900.0,0.8883571]
[1753387369989,0.4170824,118910.0,118900.0,1.24446012]
[1753387370293,0.005,118910.0,118900.0,1.24442012]
[1753387370497,0.1731029,118910.0,118900.0,1.24442012]
[1753387371299,0.1731029,118910.0,118900.0,1.42277994]
[1753387373394,0.005,118910.0,118900.0,1.24462898]
[1753387373601,0.1731029,118910.0,118900.0,1.24462898]
[1753387378500,0.17664007,118910.0,118900.0,1.24462898]
[1753387382803,0.17664007,118910.0,118900.0,1.35033159]
[1753387384597,0.17664007,118910.0,118900.0,0.99401971]
[1753387384802,0.17664007,118910.0,118900.0,1.35033159]
[1753387387302,0.17664007,118910.0,118900.0,1.24462898]
[1753387393026,0.17664007,118910.0,118900.0,1.35033159]
[1753387395122,0.17664007,118910.0,118900.0,1.52848291]
[1753387395417,0.17664007,118910.0,118900.0,1.4227803]
[1753387398626,0.17664007,118910.0,118900.0,1.52848291]
[1753387399128,0.17664007,118910.0,118900.0,1.4227803]
[1753387399527,0.17664007,118910.0,118900.0,1.52848291]
[1753387399726,0.17664007,118910.0,118900.0,0.99401971]
[1753387400031,0.17664007,118910.0,118900.0,1.52848291]
[1753387400222,0.17664007,118910.0,118900.0,0.8883171]
[1753387400423,0.17664007,118910.0,118900.0,1.4227803]
[1753387400729,0.17664007,118910.0,118900.0,1.52848291]
[1753387402238,0.17664007,118910.0,118900.0,0.99401971]
[1753387402428,0.17664007,118910.0,118900.0,1.52848291]
[1753387405134,0.56104167,118910.0,118900.0,1.09189421]
[1753387405431,0.56104167,118910.0,118900.0,0.82462261]
[1753387405632,0.56104167,118910.0,118900.0,0.71892]
[1753387406031,0.56104167,118910.0,118900.0,0.9861516]
[1753387407434,0.56104167,118910.0,118900.0,0.3860316]
[1753387407630,0.56104167,118910.0,118900.0,0.9860716]
[1753387408236,0.56104167,118910.0,118900.0,0.71884]
[1753387409534,0.29381007,118910.0,118900.0,0.71884]
[1753387409732,0.56104167,118910.0,118900.0,0.9860716]
[1753387410134,0.29381007,118910.0,118900.0,0.9860716]
[1753387410437,0.56104167,118910.0,118900.0,0.9860716]
[1753387412843,0.29381007,118910.0,118900.0,0.9860716]
[1753387413141,0.56104167,118910.0,118900.0,0.9860716]
[1753387421554,0.29381007,118910.0,118900.0,0.9860716]
[1753387422054,0.56104167,118910.0,118900.0,0.9860716]
[1753387422352,0.56104167,118910.0,118900.0,1.2533032]
[1753387422554,0.29381007,118910.0,118900.0,1.2533032]
[1753387422848,0.56104167,118910.0,118900.0,0.9860716]
[1753387423052,0.29381007,118910.0,118900.0,0.9860716]
[1753387423254,0.56104167,118910.0,118900.0,1.2533032]
[1753387424552,0.56104167,118910.0,118900.0,0.9860716]
[1753387425054,0.56104167,118910.0,118900.0,1.2533032]
[1753387425450,0.56104167,118910.0,118900.0,0.9860716]
[1753387429347,0.56104167,118910.0,118900.0,0.71884]
[1753387429557,0.56104167,118910.0,118900.0,0.9860716]
[1753387432961,0.56104167,118910.0,118900.0,0.71884]
[1753387433160,0.56104167,118910.0,118900.0,0.3860316]
[1753387433362,0.56104167,118910.0,118900.0,0.9850716]
[1753387435461,0.56104167,118910.0,118900.0,0.71784]
[1753387435671,0.56104167,118910.0,118900.0,0.9850716]
[1753387441173,0.56104167,118910.0,118900.0,0.71784]
[1753387441376,0.56104167,118910.0,118900.0,0.9850716]
[1753387442978,0.29381007,118910.0,118900.0,0.9850716]
[1753387443279,0.56104167,118910.0,118900.0,0.9850716]
[1753387448583,0.56104167,118910.0,118900.0,0.3860316]
[1753387448785,0.56104167,118910.0,118900.0,0.9843916]
[1753387455892,0.56104167,118910.0,118900.0,0.71716]
[1753387456287,0.29381007,118910.0,118900.0,0.71716]
[1753387456488,0.56104167,118910.0,118900.0,0.71716]
[1753387458093,0.56104167,118910.0,118900.0,0.1188]
[1753387458595,0.56104167,118910.0,118900.0,0.71668]
[1753387464492,0.56104167,118910.0,118900.0,0.1188]
[1753387464898,0.56104167,118910.0,118900.0,0.71636]
[1753387465098,0.56104167,118910.0,118900.0,0.9835916]
[1753387465300,0.56104167,118910.0,118900.0,0.9835516]
[1753387466695,0.56104167,118910.0,118900.0,0.3860316]
[1753387467003,0.56104167,118910.0,118900.0,0.9834716]
[1753387467199,0.56104167,118910.0,118900.0,0.3860316]
[1753387467396,0.29381007,118910.0,118900.0,0.9834716]
[1753387467598,0.56104167,118910.0,118900.0,0.9834716]
[1753387468499,0.56104167,118910.0,118900.0,0.9833916]
[1753387469104,0.56104167,118910.0,118900.0,0.71616]
[1753387470503,0.56104167,118910.0,118900.0,0.9833916]
[1753387470998,0.56104167,118910.0,118900.0,0.71616]
[1753387473604,0.82827327,118910.0,118900.0,0.06416]
[1753387473810,0.82827327,118910.0,118890.0,0.11749]
[1753387473811,0.2716571,118900.0,118890.0,0.11749]
[1753387473995,0.8206403,118900.0,118890.0,0.71457]
[1753387474206,0.82417747,118900.0,118890.0,0.71457]
[1753387475106,0.82717747,118900.0,118890.0,0.09435]
[1753387475303,0.82717747,118900.0,118890.0,0.69135]
[1753387476009,0.82817747,118900.0,118890.0,0.69235]
[1753387476909,0.82817747,118900.0,118890.0,0.67882]
[1753387480211,0.82817747,118900.0,118890.0,0.69246]
[1753387480711,0.82817747,118900.0,118890.0,0.715]
[1753387484316,0.82817747,118900.0,118890.0,0.69246]
[1753387484615,0.82817747,118900.0,118890.0,0.67882]
[1753387486116,0.82817747,118900.0,118890.0,0.69246]
[1753387486614,0.82817747,118900.0,118890.0,0.715]
[1753387497510,1.26362507,118900.0,118870.0,0.007224]
[1753387497713,1.08856,118880.0,118870.0,1e-07]
[1753387498012,0.94787858,118880.0,118870.0,1e-07]
[1753387498217,1.54737575,118880.0,118870.0,0.0493301]
[1753387498416,1.54737575,118880.0,118870.0,0.07907192]
[1753387499123,1.81460735,118880.0,118870.0,0.07907192]
[1753387499421,0.95141575,118880.0,118870.0,0.74314192]
[1753387499722,0.95441575,118880.0,118870.0,0.74314192]
[1753387500221,0.2720994,118870.0,118860.0,0.06790533]
[1753387500521,0.2721135,118860.0,118850.0,0.7134]
[1753387500815,0.2868935,118860.0,118850.0,0.71336]
[1753387501020,0.8213567,118860.0,118850.0,0.71336]
[1753387501215,0.82489387,118860.0,118850.0,0.71336]
[1753387501416,0.82489387,118860.0,118850.0,0.8815477]
[1753387501617,0.82489387,118860.0,118850.0,0.8815077]
[1753387502022,0.82489387,118860.0,118850.0,0.71332]
[1753387502223,0.82489387,118860.0,118850.0,0.97684632]
[1753387503325,0.82589387,118860.0,118850.0,0.80865862]
[1753387503523,0.82689387,118860.0,118850.0,0.80865862]
[1753387503821,0.82689387,118860.0,118850.0,1.24407792]
[1753387503822,0.00553717,118860.0,118850.0,1.24407792]
[1753387504127,0.5442842,118880.0,118870.0,0.2856794]
[1753387504426,0.5442842,118880.0,118870.0,1.148631]
[1753387505225,0.2770526,118880.0,118870.0,0.8813994]
[1753387505525,0.2780526,118880.0,118870.0,0.8813994]
[1753387505827,0.2810526,118880.0,118870.0,0.8813994]
[1753387506529,0.2028028,118870.0,118860.0,0.04771]
[1753387506725,0.81160242,118870.0,118860.0,0.64327]
[1753387507623,0.81160242,118870.0,118860.0,0.62963]
[1753387508025,0.4550478,118870.0,118860.0,0.62963]
[1753387508227,0.81160242,118870.0,118860.0,0.62963]
[1753387508428,0.81160242,118870.0,118860.0,0.03407]
[1753387508728,0.81160242,118870.0,118860.0,0.62959]
[1753387508921,0.81360242,118870.0,118860.0,0.63059]
[1753387511632,0.81360242,118870.0,118860.0,0.63039]
[1753387513037,0.81360242,118870.0,118860.0,0.69047]
[1753387518146,0.81360242,118870.0,118860.0,0.69047]
[1753387518644,0.3786578,118870.0,118860.0,0.71354]
[1753387518848,0.3786578,118870.0,118860.0,1.07009462]
[1753387519051,0.3786578,118870.0,118860.0,0.71354]
[1753387519241,0.4426078,118870.0,118860.0,0.71354]
[1753387519546,0.4568978,118870.0,118860.0,0.71354]
[1753387520836,0.4568978,118870.0,118860.0,0.7131]
[1753387521848,0.81345242,118870.0,118860.0,0.8812735]
[1753387522041,0.4426078,118870.0,118860.0,0.8812735]
[1753387522245,0.3383278,118870.0,118860.0,0.8812735]
[1753387522645,0.3608478,118870.0,118860.0,0.8812735]
[1753387523148,0.296285,118870.0,118860.0,0.8812735]
[1753387525349,0.318805,118870.0,118860.0,0.8812735]
[1753387525545,0.318805,118870.0,118860.0,0.2863935]
[1753387525850,0.318805,118870.0,118860.0,0.8811135]
[1753387526452,0.76994962,118870.0,118860.0,0.03507]
[1753387526652,0.76994962,118870.0,118860.0,0.62975]
[1753387528651,0.76994962,118870.0,118860.0,0.62967]
[1753387528851,0.76994962,118870.0,118860.0,0.65076]
[1753387529051,0.76994962,118870.0,118860.0,0.68118]
[1753387532950,0.76994962,118870.0,118860.0,0.69115]
[1753387533354,0.76994962,118870.0,118860.0,0.09655]
[1753387537858,0.76994962,118870.0,118860.0,0.096651]
[1753387543749,0.76994962,118870.0,118860.0,0.082891]
[1753387545257,0.76994962,118870.0,118860.0,0.051831]
[1753387545562,0.76994962,118870.0,118860.0,0.001101]
[1753387546165,0.76994962,118870.0,118860.0,0.034341]
[1753387549065,0.76994962,118870.0,118860.0,0.050891]
[1753387549561,0.76994962,118870.0,118860.0,0.001101]
[1753387550161,0.413395,118870.0,118860.0,0.001101]
[1753387550363,0.76994962,118870.0,118860.0,0.034341]
[1753387551265,0.413395,118870.0,118860.0,0.034341]
[1753387551466,0.76994962,118870.0,118860.0,0.034341]
[1753387552266,0.413395,118870.0,118860.0,0.034341]
[1753387552462,0.76994962,118870.0,118860.0,0.034341]
[1753387555265,0.9484691,118870.0,118860.0,0.034341]
[1753387557569,0.9095991,118870.0,118860.0,0.034341]
[1753387557769,0.64206205,118870.0,118860.0,0.94151805]
[1753387558665,0.64206205,118870.0,118860.0,0.673981]
[1753387559767,0.64206205,118870.0,118860.0,0.8421545]
[1753387559768,0.374525,118870.0,118860.0,0.8421545]
[1753387559969,0.296285,118870.0,118860.0,1.3772286]
[1753387560274,0.2542422,118870.0,118860.0,1.3772286]
[1753387560468,0.2542422,118870.0,118860.0,0.8421545]
[1753387560672,0.2542422,118870.0,118860.0,1.3772286]
[1753387560974,0.2542422,118870.0,118860.0,0.8421545]
[1753387561281,0.2542422,118870.0,118860.0,1.3772286]
[1753387562664,0.2792222,118870.0,118860.0,1.3998486]
[1753387563177,0.2792222,118870.0,118860.0,1.23788772]
[1753387567682,0.2542422,118870.0,118860.0,1.23788772]
[1753387567882,0.2542422,118870.0,118860.0,0.64440772]
[1753387568079,0.2542422,118870.0,118860.0,1.23748772]
[1753387569074,0.2542422,118870.0,118860.0,0.64440772]
[1753387569274,0.2542422,118870.0,118860.0,1.23740772]
[1753387569674,0.2542422,118870.0,118860.0,1.22746772]
[1753387572179,0.2542422,118870.0,118860.0,0.64409772]
[1753387572379,0.2542422,118870.0,118860.0,1.23697772]
[1753387573382,0.2542422,118870.0,118860.0,1.23693772]
[1753387573582,0.2542422,118870.0,118860.0,0.64409772]
[1753387573881,0.2542422,118870.0,118860.0,1.23689772]
[1753387574380,0.2542422,118870.0,118860.0,0.64409772]
[1753387574580,0.2542422,118870.0,118860.0,1.23685772]
[1753387575783,0.2542422,118870.0,118860.0,1.25417649]
[1753387578083,0.2780722,118870.0,118860.0,1.25417649]
[1753387578279,0.2780722,118870.0,118860.0,0.66141649]
[1753387578479,0.2780722,118870.0,118860.0,1.25405649]
[1753387578687,0.2780722,118870.0,118860.0,0.66141649]
[1753387578882,0.2780722,118870.0,118860.0,1.25397649]
[1753387580982,0.002,118870.0,118860.0,0.66141649]
[1753387581191,0.002,118870.0,118860.0,1.25393649]
[1753387581382,0.002,118870.0,118860.0,1.42219249]
[1753387581886,0.002,118870.0,118860.0,1.25393649]
[1753387585392,0.002,118870.0,118860.0,0.66141649]
[1753387586690,0.002,118870.0,118860.0,2.51357649]
[1753387588787,0.1681575,118880.0,118870.0,0.2860893]
[1753387588993,0.1681575,118880.0,118870.0,0.64265252]
[1753387590087,0.09628,118900.0,118890.0,0.00458]
[1753387590292,0.11819416,118900.0,118890.0,1.22462323]
[1753387590487,0.16542416,118900.0,118890.0,0.69992891]
[1753387590797,0.18925416,118900.0,118890.0,1.23846323]
[1753387591297,0.18925416,118900.0,118890.0,1.14920675]
[1753387591485,0.19425416,118900.0,118890.0,1.14920675]
[1753387591689,0.19425416,118900.0,118890.0,1.14912675]
[1753387592300,0.24530416,118900.0,118890.0,1.15012675]
[1753387593294,0.24530416,118900.0,118890.0,1.23922045]
[1753387603818,0.3002521,118920.0,118910.0,0.2253828]
[1753387604010,0.3487821,118920.0,118910.0,1.23401324]
[1753387604209,0.3487821,118920.0,118910.0,0.8774928]
[1753387604518,0.3487821,118920.0,118910.0,0.94623934]
[1753387605013,0.3487821,118920.0,118910.0,0.18677654]
[1753387605221,0.3487821,118920.0,118910.0,0.96314494]
[1753387605222,0.3557821,118920.0,118910.0,0.96314494]
[1753387605920,0.3834721,118920.0,118910.0,0.96414494]
[1753387606624,0.3834721,118920.0,118910.0,1.00595958]
[1753387608021,0.3834721,118920.0,118910.0,1.00583958]
[1753387608217,0.3834721,118920.0,118910.0,1.36224002]
[1753387609915,0.3695821,118920.0,118910.0,1.36224002]
[1753387611527,0.3033121,118920.0,118910.0,1.36224002]
[1753387612425,0.3375321,118920.0,118910.0,1.36224002]
[1753387613921,0.2534787,118920.0,118910.0,1.36224002]
[1753387614127,0.1780887,118920.0,118910.0,1.36224002]
[1753387615528,0.2027787,118920.0,118910.0,1.36224002]
[1753387616024,0.2027787,118920.0,118910.0,0.41463958]
[1753387616224,0.2027787,118920.0,118910.0,1.00559958]
[1753387616438,0.2027787,118920.0,118910.0,1.36200002]
[1753387617221,0.01,118920.0,118910.0,1.36200002]
[1753387617421,0.3734351,118940.0,118930.0,0.2150046]
[1753387617616,0.3734351,118940.0,118930.0,1.23334504]
[1753387617924,0.3734351,118940.0,118930.0,0.8769446]
[1753387618625,0.3784351,118940.0,118930.0,0.8779446]
[1753387619629,0.3734351,118940.0,118930.0,1.23334504]
[1753387619826,0.3754351,118940.0,118930.0,1.251099]
[1753387620228,0.3754351,118940.0,118930.0,0.89469856]
[1753387620429,0.3794351,118940.0,118930.0,0.72762396]
[1753387620624,0.3794351,118940.0,118930.0,0.89569856]
[1753387621025,0.3764351,118940.0,118930.0,0.72754396]
[1753387621335,0.3764351,118940.0,118930.0,0.89561856]
[1753387621725,0.73283554,118940.0,118930.0,0.89561856]
[1753387624135,0.3764351,118940.0,118930.0,0.89561856]
[1753387624833,0.3764351,118940.0,118930.0,1.252019]
[1753387628432,0.3764351,118940.0,118930.0,0.72754396]
[1753387629438,0.3764351,118940.0,118930.0,0.89561856]
[1753387631943,0.3764351,118940.0,118930.0,0.30485856]
[1753387632134,0.3764351,118940.0,118930.0,0.89521856]
[1753387632438,0.3764351,118940.0,118930.0,1.251619]
[1753387632646,0.2130873,118940.0,118930.0,1.251619]
[1753387633140,0.2360673,118940.0,118930.0,1.251619]
[1753387633435,0.1710719,118940.0,118930.0,1.251619]
[1753387635432,0.003,118940.0,118930.0,1.251619]
[1753387636443,0.1710605,118940.0,118930.0,1.251619]
[1753387636938,0.003,118940.0,118930.0,1.251619]
[1753387637139,0.1710605,118940.0,118930.0,1.251619]
[1753387637438,0.003,118940.0,118930.0,1.251619]
[1753387637939,0.1710605,118940.0,118930.0,1.251619]
[1753387638643,0.003,118940.0,118930.0,1.251619]
[1753387639043,0.1710605,118940.0,118930.0,1.251619]
[1753387639235,0.003,118940.0,118930.0,1.251619]
[1753387640140,0.1710606,118940.0,118930.0,1.251619]
[1753387640744,0.003,118940.0,118930.0,1.251619]
[1753387644248,0.003,118940.0,118930.0,0.89521856]
[1753387644447,0.003,118940.0,118930.0,1.251619]
[1753387647249,0.003,118940.0,118930.0,1.42938354]
[1753387650451,0.168057,118950.0,118940.0,0.2854206]
[1753387650743,0.46569209,118960.0,118950.0,0.30216901]
[1753387650744,0.3317304,118960.0,118950.0,0.30216901]
[1753387651045,0.1680418,118960.0,118950.0,1.42593399]
[1753387651849,0.1910218,118960.0,118950.0,1.42593399]
[1753387653052,0.1910218,118960.0,118950.0,0.89176901]
[1753387653259,0.1910218,118960.0,118950.0,1.1588515]
[1753387653452,0.002,118960.0,118950.0,1.42593399]
[1753387654345,0.12178,118980.0,118970.0,0.1680182]
[1753387654542,0.2897911,118980.0,118970.0,1.15919574]
[1753387654746,0.2897911,118980.0,118970.0,0.89211325]
[1753387656255,0.2937911,118980.0,118970.0,0.72468183]
[1753387656556,0.2967911,118980.0,118970.0,0.89270003]
[1753387657056,0.2967911,118980.0,118970.0,0.95839316]
[1753387657455,0.2967911,118980.0,118970.0,0.94155133]
[1753387657655,0.2967911,118980.0,118970.0,0.99389794]
[1753387658058,0.65274546,118980.0,118970.0,0.70879974]
[1753387658255,0.65274546,118980.0,118970.0,0.70870056]
[1753387658964,0.65274546,118980.0,118970.0,0.70831071]
[1753387659460,0.65274546,118980.0,118970.0,0.69157031]
[1753387659958,0.65274546,118980.0,118970.0,0.70822744]
[1753387661258,0.65274546,118980.0,118970.0,0.11854744]
[1753387661480,0.04822,118960.0,118950.0,0.11878]
[1753387661657,0.2895465,118950.0,118940.0,0.01673564]
[1753387661850,0.64550086,118950.0,118940.0,0.01673564]
[1753387662050,0.2413547,118930.0,118920.0,0.8762625]
[1753387662265,0.64552906,118930.0,118920.0,0.91214217]
[1753387663260,0.2895747,118930.0,118920.0,0.91214217]
[1753387664054,0.2895747,118930.0,118920.0,0.91514217]
[1753387664356,0.64552906,118930.0,118920.0,0.91514217]
[1753387664552,0.64652906,118930.0,118920.0,0.91914217]
[1753387665161,0.64652906,118930.0,118920.0,0.9358788]
[1753387666256,0.64652906,118930.0,118920.0,0.91914217]
[1753387666459,0.64652906,118930.0,118920.0,0.93594968]
[1753387666658,0.2905747,118930.0,118920.0,0.93594968]
[1753387667462,0.64652906,118930.0,118920.0,0.74408718]
[1753387667663,0.64652906,118930.0,118920.0,0.72727967]
[1753387667961,0.64652906,118930.0,118920.0,0.7440306]
[1753387669659,0.2905747,118930.0,118920.0,0.9121195]
[1753387669860,0.2905747,118930.0,118920.0,0.9358995]
[1753387670563,0.2905747,118930.0,118920.0,0.93587706]
[1753387671861,0.2905747,118930.0,118920.0,0.68570293]
[1753387672166,0.2092147,118930.0,118920.0,1.29258508]
[1753387673058,0.2905747,118930.0,118920.0,0.10805182]
[1753387673267,0.64652906,118930.0,118920.0,0.76854182]
[1753387673566,0.2905747,118930.0,118920.0,0.93663072]
[1753387673767,0.2905747,118930.0,118920.0,1.29258508]
[1753387675263,0.64652906,118930.0,118920.0,0.12345182]
[1753387675566,0.64652906,118930.0,118920.0,0.74476182]
[1753387676462,0.64652906,118930.0,118920.0,0.64976182]
[1753387677866,0.64652906,118930.0,118920.0,0.72261182]
[1753387679568,0.64652906,118930.0,118920.0,0.007]
[1753387679864,0.94038654,118930.0,118920.0,0.02430191]
[1753387680069,0.94038654,118930.0,118920.0,0.007]
[1753387680373,0.94038654,118930.0,118920.0,0.02429966]
[1753387680570,0.94038654,118930.0,118920.0,0.007]
[1753387680873,0.94038654,118930.0,118920.0,0.02429963]
[1753387681471,0.94038654,118930.0,118920.0,0.0598566]
[1753387681871,0.94038654,118930.0,118920.0,0.04255697]
[1753387682864,0.94038654,118930.0,118920.0,0.05975813]
[1753387683064,0.94038654,118930.0,118920.0,0.05931937]
[1753387683572,0.94038654,118930.0,118920.0,0.04255697]
[1753387683761,0.77221054,118930.0,118920.0,0.15431853]
[1753387684067,1.36173054,118930.0,118920.0,0.15431853]
[1753387684280,1.36173054,118930.0,118920.0,0.05931853]
[1753387684771,0.77221054,118930.0,118920.0,0.02372851]
[1753387684973,0.77221054,118930.0,118920.0,0.05912515]
[1753387685771,0.77221054,118930.0,118920.0,0.02387633]
[1753387686166,0.77221054,118930.0,118920.0,0.02369738]
[1753387686369,0.77221054,118930.0,118920.0,0.007]
[1753387686567,0.77221054,118930.0,118920.0,0.02369738]
[1753387687170,0.77221054,118930.0,118920.0,0.0240007]
[1753387688974,0.77221054,118930.0,118920.0,0.007]
[1753387689172,0.77221054,118930.0,118920.0,0.02434161]
[1753387689673,0.77221054,118930.0,118920.0,0.007]
[1753387690275,0.77221054,118930.0,118920.0,1e-08]
[1753387690577,0.2880588,118920.0,118910.0,0.01682559]
[1753387690775,0.2880871,118900.0,118890.0,0.095]
[1753387690970,0.64404146,118900.0,118890.0,0.13645184]
[1753387691171,0.76980863,118900.0,118890.0,0.01682376]
[1753387692078,0.76980863,118900.0,118890.0,0.0504067]
[1753387692377,0.78888363,118900.0,118890.0,0.0504067]
[1753387692571,0.78888363,118900.0,118890.0,0.03365]
[1753387692770,0.78888363,118900.0,118890.0,0.04318]
[1753387693172,0.78988363,118900.0,118890.0,0.0629367]
[1753387693975,0.43392927,118900.0,118890.0,0.1147567]
[1753387694179,0.78988363,118900.0,118890.0,0.11523755]
[1753387694771,0.79088363,118900.0,118890.0,0.18396139]
[1753387695483,0.79088363,118900.0,118890.0,0.16672384]
[1753387695682,0.79088363,118900.0,118890.0,0.1840378]
[1753387696686,0.43492927,118900.0,118890.0,0.20126295]
[1753387696983,0.79088363,118900.0,118890.0,0.20126295]
[1753387698389,0.79088363,118900.0,118890.0,0.21804449]
[1753387698581,0.79088363,118900.0,118890.0,0.21857227]
[1753387699786,0.79088363,118900.0,118890.0,0.20126295]
[1753387700889,0.79088363,118900.0,118890.0,0.21841749]
[1753387701491,0.79088363,118900.0,118890.0,0.2182668]
[1753387701989,0.79088363,118900.0,118890.0,0.21837667]
[1753387703292,0.79088363,118900.0,118890.0,0.21806039]
[1753387703792,0.79088363,118900.0,118890.0,0.80750039]
[1753387704287,0.43492927,118900.0,118890.0,0.83232835]
[1753387704493,0.43492927,118900.0,118890.0,1.00045955]
[1753387705186,0.43492927,118900.0,118890.0,1.35641391]
[1753387705386,0.43492927,118900.0,118890.0,1.00045955]
[1753387707886,0.43492927,118900.0,118890.0,0.83232835]
[1753387708091,0.79088363,118900.0,118890.0,0.83232835]
[1753387711900,0.79088363,118900.0,118890.0,0.81514295]
[1753387712089,0.79088363,118900.0,118890.0,0.10626295]
[1753387712292,0.79088363,118900.0,118890.0,0.69562295]
[1753387713992,0.79088363,118900.0,118890.0,0.10626295]
[1753387714194,0.79088363,118900.0,118890.0,0.69562295]
[1753387715202,0.79088363,118900.0,118890.0,0.72927295]
[1753387715395,0.79088363,118900.0,118890.0,0.73880295]
[1753387716401,0.79088363,118900.0,118890.0,0.75259295]
[1753387717098,0.79088363,118900.0,118890.0,0.10626295]
[1753387717402,0.79088363,118900.0,118890.0,0.69558295]
[1753387722306,0.43492927,118900.0,118890.0,0.69558295]
[1753387722497,0.79088363,118900.0,118890.0,0.72792295]
[1753387723105,0.79088363,118900.0,118890.0,0.73787295]
[1753387723408,0.43492927,118900.0,118890.0,0.78965295]
[1753387723703,0.79088363,118900.0,118890.0,0.81241295]
[1753387730908,0.79088363,118900.0,118890.0,0.78965295]
[1753387736114,0.79088363,118900.0,118890.0,0.81241295]
[1753387737811,0.79088363,118900.0,118890.0,0.22309295]
[1753387738010,0.79088363,118900.0,118890.0,0.81213295]
[1753387738209,0.79088363,118900.0,118890.0,0.22309295]
[1753387738414,0.79088363,118900.0,118890.0,0.81209295]
[1753387740316,0.43492927,118900.0,118890.0,0.81209295]
[1753387740510,0.79088363,118900.0,118890.0,0.81209295]
[1753387741406,0.79088363,118900.0,118890.0,0.22309295]
[1753387741912,0.79088363,118900.0,118890.0,0.81205295]
[1753387742708,0.79088363,118900.0,118890.0,0.22309295]
[1753387742909,0.43492927,118900.0,118890.0,0.22309295]
[1753387743110,0.79088363,118900.0,118890.0,0.81201295]
[1753387743415,0.79088363,118900.0,118890.0,0.22309295]
[1753387743612,0.79088363,118900.0,118890.0,0.81201295]
[1753387744114,0.43492927,118900.0,118890.0,0.81201295]
[1753387744617,0.79088363,118900.0,118890.0,0.22309295]
[1753387744818,0.79088363,118900.0,118890.0,0.81197295]
[1753387746319,0.79088363,118900.0,118890.0,0.22309295]
[1753387746520,0.79088363,118900.0,118890.0,0.81197295]
[1753387747823,0.43492927,118900.0,118890.0,0.81197295]
[1753387748121,0.79088363,118900.0,118890.0,0.81197295]
[1753387750625,0.79088363,118900.0,118890.0,0.16579384]
[1753387750825,0.2853112,118890.0,118880.0,7.04859]